[Event "Titled Tuesday Blitz July 13 2021"]
[White "Xie, Bryan"]
[Black "Novikov, Evgenij"]
[WhiteFideId "30941296"]
[BlackFideId "4125380"]
[WhiteElo "1899"]
[BlackElo "2242"]
[Result "1-0"]
[Round "04"]
[TimeControl "180+1"]
[Date "2021.07.13"]
[WhiteClock "0:00:17"]
[BlackClock "0:00:12"]

1. e4 {[%clk 0:03:00]}  c5 {[%clk 0:02:59]} 2. Nf3 {[%clk 0:03:00]}  d6 {[%clk 0:02:59]} 3. d4 {[%clk 0:03:00]}  cxd4 {[%clk 0:03:00]} 4. Nxd4 {[%clk 0:03:00]}  Nf6 {[%clk 0:03:01]} 5. Nc3 {[%clk 0:03:01]}  a6 {[%clk 0:03:01]} 6. Be3 {[%clk 0:02:59]}  e5 {[%clk 0:02:59]} 7. Nb3 {[%clk 0:02:58]}  Be6 {[%clk 0:02:59]} 8. Be2 {[%clk 0:02:56]}  Be7 {[%clk 0:02:59]} 9. O-O {[%clk 0:02:56]}  O-O {[%clk 0:02:59]} 10. f4 {[%clk 0:02:51]}  b5 {[%clk 0:02:46]} 11. f5 {[%clk 0:02:50]}  Bc4 {[%clk 0:02:44]} 12. Bxc4 {[%clk 0:02:48]}  bxc4 {[%clk 0:02:44]} 13. Nd2 {[%clk 0:02:48]}  Qc7 {[%clk 0:02:42]} 14. Qf3 {[%clk 0:02:47]}  Nc6 {[%clk 0:02:28]} 15. Rad1 {[%clk 0:02:23]}  Nd4 {[%clk 0:02:10]} 16. Bxd4 {[%clk 0:02:19]}  exd4 {[%clk 0:02:11]} 17. Nd5 {[%clk 0:02:04]}  Nxd5 {[%clk 0:02:05]} 18. exd5 {[%clk 0:02:05]}  Bg5 {[%clk 0:01:58]} 19. Ne4 {[%clk 0:02:01]}  Be3+ {[%clk 0:01:58]} 20. Kh1 {[%clk 0:02:00]}  f6 {[%clk 0:01:44]} 21. c3 {[%clk 0:01:59]}  Rab8 {[%clk 0:01:17]} 22. cxd4 {[%clk 0:01:55]}  Bh6 {[%clk 0:01:16]} 23. Qe2 {[%clk 0:01:46]}  Rfe8 {[%clk 0:01:15]} 24. Qc2 {[%clk 0:01:44]}  Qb6 {[%clk 0:01:06]} 25. Rfe1 {[%clk 0:01:40]}  Rec8 {[%clk 0:00:51]} 26. Re2 {[%clk 0:01:33]}  Kf7 {[%clk 0:00:44]} 27. Rde1 {[%clk 0:01:33]}  Rb7 {[%clk 0:00:39]} 28. Qc3 {[%clk 0:01:30]}  Rd7 {[%clk 0:00:36]} 29. Qg3 {[%clk 0:01:23]}  Rcd8 {[%clk 0:00:34]} 30. Qc3 {[%clk 0:01:23]}  Qb5 {[%clk 0:00:34]} 31. Rc2 {[%clk 0:01:04]}  Qxd5 {[%clk 0:00:34]} 32. Ng3 {[%clk 0:00:45]}  Rc7 {[%clk 0:00:31]} 33. Re6 {[%clk 0:00:44]}  Bf4 {[%clk 0:00:29]} 34. Rce2 {[%clk 0:00:24]}  Bxg3 {[%clk 0:00:29]} 35. Qxg3 {[%clk 0:00:21]}  Qxf5 {[%clk 0:00:28]} 36. h3 {[%clk 0:00:12]}  Qxe6 {[%clk 0:00:28]} 37. Rxe6 {[%clk 0:00:12]}  Kxe6 {[%clk 0:00:29]} 38. Qe3+ {[%clk 0:00:09]}  Kf7 {[%clk 0:00:28]} 39. d5 {[%clk 0:00:09]}  Rb8 {[%clk 0:00:22]} 40. Qe6+ {[%clk 0:00:09]}  Kg6 {[%clk 0:00:20]} 41. Qxd6 {[%clk 0:00:10]}  Rcb7 {[%clk 0:00:18]} 42. Qxa6 {[%clk 0:00:06]}  Rxb2 {[%clk 0:00:17]} 43. Qxc4 {[%clk 0:00:07]}  R2b6 {[%clk 0:00:13]} 44. Qg4+ {[%clk 0:00:07]}  Kf7 {[%clk 0:00:13]} 45. Qd7+ {[%clk 0:00:07]}  Kg6 {[%clk 0:00:12]} 46. Kh2 {[%clk 0:00:08]}  h5 {[%clk 0:00:12]} 47. d6 {[%clk 0:00:08]}  R6b7 {[%clk 0:00:07]} 48. Qe6 {[%clk 0:00:08]}  Kh6 {[%clk 0:00:05]} 49. Qe3+ {[%clk 0:00:08]}  Kh7 {[%clk 0:00:04]} 50. Qe4+ {[%clk 0:00:08]}  g6 {[%clk 0:00:05]} 51. Qe6 {[%clk 0:00:08]}  Kg7 {[%clk 0:00:05]} 52. d7 {[%clk 0:00:08]}  Rf8 {[%clk 0:00:04]} 53. Qe7+ {[%clk 0:00:08]}  Rf7 {[%clk 0:00:04]} 54. Qxf7+ {[%clk 0:00:05]}  Kxf7 {[%clk 0:00:04]} 55. d8=N+ {[%clk 0:00:06]}  Ke7 {[%clk 0:00:04]} 56. Nxb7 {[%clk 0:00:06]}  Kd7 {[%clk 0:00:04]} 57. Nc5+ {[%clk 0:00:06]}  Kc6 {[%clk 0:00:05]} 58. Ne4 {[%clk 0:00:07]}  f5 {[%clk 0:00:05]} 59. Nf6 {[%clk 0:00:07]}  Kb5 {[%clk 0:00:04]} 60. Kg3 {[%clk 0:00:08]}  Ka4 {[%clk 0:00:04]} 61. Kf4 {[%clk 0:00:08]}  Ka3 {[%clk 0:00:05]} 62. Kg5 {[%clk 0:00:09]}  Kxa2 {[%clk 0:00:05]} 63. Kxg6 {[%clk 0:00:10]}  f4 {[%clk 0:00:05]} 64. Nxh5 {[%clk 0:00:10]}  Kb3 {[%clk 0:00:05]} 65. Nxf4 {[%clk 0:00:10]}  Kc4 {[%clk 0:00:06]} 66. h4 {[%clk 0:00:11]}  Kd4 {[%clk 0:00:07]} 67. h5 {[%clk 0:00:11]}  Ke5 {[%clk 0:00:07]} 68. h6 {[%clk 0:00:12]}  Kxf4 {[%clk 0:00:08]} 69. h7 {[%clk 0:00:13]}  Kg3 {[%clk 0:00:08]} 70. h8=Q {[%clk 0:00:14]}  Kxg2 {[%clk 0:00:09]} 71. Qh4 {[%clk 0:00:14]}  Kf3 {[%clk 0:00:10]} 72. Kf5 {[%clk 0:00:14]}  Kg2 {[%clk 0:00:11]} 73. Qf4 {[%clk 0:00:14]}  Kh3 {[%clk 0:00:11]} 74. Kg5 {[%clk 0:00:14]}  Kg2 {[%clk 0:00:11]} 75. Kg4 {[%clk 0:00:15]}  Kh1 {[%clk 0:00:11]} 76. Qf3+ {[%clk 0:00:15]}  Kh2 {[%clk 0:00:11]} 77. Qf2+ {[%clk 0:00:15]}  Kh1 {[%clk 0:00:11]} 78. Qe2 {[%clk 0:00:15]}  Kg1 {[%clk 0:00:12]} 79. Kg3 {[%clk 0:00:16]}  Kh1 {[%clk 0:00:12]} 80. Qg2# {[%clk 0:00:17]} 1-0


[Site "https://www.chess.com"]

[Event "Titled Tuesday Blitz July 13 2021"]
[White "Zubritskiy, Artyom"]
[Black "Garcia, Gabriel Gonzaga"]
[WhiteFideId "4181247"]
[BlackFideId "2138956"]
[WhiteElo "2559"]
[BlackElo "2240"]
[Result "1-0"]
[Round "04"]
[TimeControl "180+1"]
[Date "2021.07.13"]
[WhiteClock "0:00:07"]
[BlackClock "0:00:09"]

1. c4 {[%clk 0:03:00]}  Nf6 {[%clk 0:02:59]} 2. g3 {[%clk 0:03:01]}  g6 {[%clk 0:02:58]} 3. Bg2 {[%clk 0:03:01]}  Bg7 {[%clk 0:02:58]} 4. Nc3 {[%clk 0:03:01]}  d6 {[%clk 0:02:57]} 5. d4 {[%clk 0:03:01]}  O-O {[%clk 0:02:57]} 6. Nf3 {[%clk 0:03:01]}  c5 {[%clk 0:02:56]} 7. O-O {[%clk 0:03:01]}  Bd7 {[%clk 0:02:50]} 8. dxc5 {[%clk 0:02:29]}  dxc5 {[%clk 0:02:49]} 9. Ne5 {[%clk 0:02:29]}  Nc6 {[%clk 0:02:33]} 10. Nxc6 {[%clk 0:02:23]}  Bxc6 {[%clk 0:02:33]} 11. Bxc6 {[%clk 0:02:23]}  bxc6 {[%clk 0:02:33]} 12. Na4 {[%clk 0:01:36]}  Qa5 {[%clk 0:02:27]} 13. Bd2 {[%clk 0:01:30]}  Qa6 {[%clk 0:02:25]} 14. Qc2 {[%clk 0:01:21]}  Nd7 {[%clk 0:02:19]} 15. Rad1 {[%clk 0:01:14]}  Rfd8 {[%clk 0:02:14]} 16. b3 {[%clk 0:01:13]}  h6 {[%clk 0:01:43]} 17. Be3 {[%clk 0:01:08]}  Qa5 {[%clk 0:01:42]} 18. Rd3 {[%clk 0:00:58]}  Nb6 {[%clk 0:01:26]} 19. Nxc5 {[%clk 0:00:36]}  Rxd3 {[%clk 0:01:24]} 20. Nxd3 {[%clk 0:00:36]}  Rd8 {[%clk 0:01:17]} 21. Rd1 {[%clk 0:00:33]}  Qf5 {[%clk 0:01:12]} 22. Nb4 {[%clk 0:00:18]}  Rxd1+ {[%clk 0:01:08]} 23. Qxd1 {[%clk 0:00:18]}  c5 {[%clk 0:00:58]} 24. Qd8+ {[%clk 0:00:18]}  Kh7 {[%clk 0:00:57]} 25. Nd3 {[%clk 0:00:18]}  e5 {[%clk 0:00:34]} 26. Nxc5 {[%clk 0:00:15]}  Qb1+ {[%clk 0:00:34]} 27. Kg2 {[%clk 0:00:15]}  Qxa2 {[%clk 0:00:35]} 28. Qd3 {[%clk 0:00:11]}  Nc8 {[%clk 0:00:18]} 29. g4 {[%clk 0:00:11]}  Ne7 {[%clk 0:00:17]} 30. Qd7 {[%clk 0:00:10]}  Bf8 {[%clk 0:00:12]} 31. Qe8 {[%clk 0:00:07]}  Kg7 {[%clk 0:00:09]} 32. Nd7 {[%clk 0:00:07]} 1-0


[Site "https://www.chess.com"]

[Event "Titled Tuesday Blitz July 13 2021"]
[White "deribas12345"]
[Black "Wagner, Dennis"]
[BlackFideId "24650684"]
[WhiteElo "2508"]
[BlackElo "2355"]
[Result "1-0"]
[Round "04"]
[TimeControl "180+1"]
[Date "2021.07.13"]
[WhiteClock "0:00:08"]
[BlackClock "0:00:01"]

1. d4 {[%clk 0:03:00]}  Nf6 {[%clk 0:02:59]} 2. c4 {[%clk 0:03:00]}  c5 {[%clk 0:02:53]} 3. d5 {[%clk 0:03:00]}  b5 {[%clk 0:02:46]} 4. e4 {[%clk 0:02:59]}  d6 {[%clk 0:02:45]} 5. Qc2 {[%clk 0:02:59]}  g6 {[%clk 0:02:43]} 6. cxb5 {[%clk 0:02:57]}  Bg7 {[%clk 0:02:43]} 7. Nc3 {[%clk 0:02:56]}  O-O {[%clk 0:02:43]} 8. Nf3 {[%clk 0:02:56]}  a6 {[%clk 0:02:41]} 9. bxa6 {[%clk 0:02:53]}  Nxa6 {[%clk 0:02:39]} 10. Be2 {[%clk 0:02:50]}  Nb4 {[%clk 0:02:35]} 11. Qd1 {[%clk 0:02:50]}  Ba6 {[%clk 0:02:33]} 12. Bxa6 {[%clk 0:02:49]}  Rxa6 {[%clk 0:02:30]} 13. O-O {[%clk 0:02:49]}  Nd7 {[%clk 0:02:13]} 14. Qe2 {[%clk 0:02:25]}  Ra8 {[%clk 0:01:58]} 15. Bf4 {[%clk 0:02:23]}  Qb6 {[%clk 0:01:55]} 16. a3 {[%clk 0:02:20]}  Na6 {[%clk 0:01:53]} 17. e5 {[%clk 0:02:20]}  dxe5 {[%clk 0:01:33]} 18. Nxe5 {[%clk 0:02:20]}  Nxe5 {[%clk 0:01:32]} 19. Bxe5 {[%clk 0:02:21]}  Bxe5 {[%clk 0:01:22]} 20. Qxe5 {[%clk 0:02:22]}  Qd6 {[%clk 0:01:10]} 21. Rfe1 {[%clk 0:02:11]}  Rfb8 {[%clk 0:01:03]} 22. Qxe7 {[%clk 0:02:07]}  Qxe7 {[%clk 0:01:03]} 23. Rxe7 {[%clk 0:02:08]}  Rxb2 {[%clk 0:01:03]} 24. Rd1 {[%clk 0:01:59]}  Kf8 {[%clk 0:00:58]} 25. d6 {[%clk 0:01:58]}  c4 {[%clk 0:00:55]} 26. h4 {[%clk 0:01:50]}  Nc5 {[%clk 0:00:53]} 27. Rc7 {[%clk 0:01:46]}  Nd3 {[%clk 0:00:51]} 28. Rxc4 {[%clk 0:01:37]}  Nxf2 {[%clk 0:00:38]} 29. Rf1 {[%clk 0:01:33]}  Nd3 {[%clk 0:00:37]} 30. Rc7 {[%clk 0:01:30]}  Ne5 {[%clk 0:00:34]} 31. Ne4 {[%clk 0:01:25]}  Rxa3 {[%clk 0:00:32]} 32. d7 {[%clk 0:01:13]}  Ke7 {[%clk 0:00:27]} 33. Nc5 {[%clk 0:01:11]}  Raa2 {[%clk 0:00:24]} 34. Re1 {[%clk 0:00:54]}  Rxg2+ {[%clk 0:00:24]} 35. Kh1 {[%clk 0:00:53]}  Rh2+ {[%clk 0:00:24]} 36. Kg1 {[%clk 0:00:54]}  Rag2+ {[%clk 0:00:23]} 37. Kf1 {[%clk 0:00:54]}  Rf2+ {[%clk 0:00:17]} 38. Kg1 {[%clk 0:00:54]}  Re2 {[%clk 0:00:16]} 39. Rxe2 {[%clk 0:00:47]}  Rxe2 {[%clk 0:00:16]} 40. Rc8 {[%clk 0:00:48]}  Nxd7 {[%clk 0:00:16]} 41. Rc7 {[%clk 0:00:45]}  Rd2 {[%clk 0:00:15]} 42. Ne4 {[%clk 0:00:39]}  Rd4 {[%clk 0:00:14]} 43. Nc5 {[%clk 0:00:37]}  h5 {[%clk 0:00:14]} 44. Kf2 {[%clk 0:00:36]}  Rd5 {[%clk 0:00:14]} 45. Ne4 {[%clk 0:00:34]}  Re5 {[%clk 0:00:13]} 46. Kf3 {[%clk 0:00:32]}  Rf5+ {[%clk 0:00:13]} 47. Ke3 {[%clk 0:00:32]}  Rd5 {[%clk 0:00:13]} 48. Kf4 {[%clk 0:00:29]}  Kf8 {[%clk 0:00:10]} 49. Ng5 {[%clk 0:00:24]}  Rf5+ {[%clk 0:00:10]} 50. Kg3 {[%clk 0:00:23]}  Ne5 {[%clk 0:00:10]} 51. Ra7 {[%clk 0:00:20]}  Kg7 {[%clk 0:00:10]} 52. Rb7 {[%clk 0:00:20]}  Kf8 {[%clk 0:00:08]} 53. Rb8+ {[%clk 0:00:19]}  Ke7 {[%clk 0:00:08]} 54. Rb7+ {[%clk 0:00:20]}  Kd6 {[%clk 0:00:08]} 55. Ne4+ {[%clk 0:00:18]}  Kd5 {[%clk 0:00:08]} 56. Ng5 {[%clk 0:00:18]}  f6 {[%clk 0:00:08]} 57. Nh7 {[%clk 0:00:12]}  Rf3+ {[%clk 0:00:07]} 58. Kg2 {[%clk 0:00:12]}  Rf4 {[%clk 0:00:05]} 59. Rb6 {[%clk 0:00:12]}  Rxh4 {[%clk 0:00:03]} 60. Nxf6+ {[%clk 0:00:12]}  Kc5 {[%clk 0:00:02]} 61. Re6 {[%clk 0:00:12]}  Ng4 {[%clk 0:00:01]} 62. Nd7+ {[%clk 0:00:11]}  Kd5 {[%clk 0:00:01]} 63. Rxg6 {[%clk 0:00:12]}  Rh2+ {[%clk 0:00:01]} 64. Kg3 {[%clk 0:00:12]}  Ra2 {[%clk 0:00:01]} 65. Rg5+ {[%clk 0:00:08]}  Ke4 {[%clk 0:00:01]} 66. Rxh5 {[%clk 0:00:08]}  Ne3 {[%clk 0:00:01]} 67. Nc5+ {[%clk 0:00:08]} 1-0


[Site "https://www.chess.com"]

[Event "Titled Tuesday Blitz July 13 2021"]
[White "shnitez"]
[Black "Alavkin, Arseny"]
[BlackFideId "4120612"]
[WhiteElo "2456"]
[BlackElo "2401"]
[Result "0-1"]
[Round "04"]
[TimeControl "180+1"]
[Date "2021.07.13"]
[WhiteClock "0:00:19"]
[BlackClock "0:01:01"]

1. c4 {[%clk 0:03:00]}  Nf6 {[%clk 0:02:59]} 2. Nc3 {[%clk 0:03:00]}  e5 {[%clk 0:03:00]} 3. Nf3 {[%clk 0:02:59]}  Nc6 {[%clk 0:03:00]} 4. e3 {[%clk 0:02:59]}  d5 {[%clk 0:02:54]} 5. cxd5 {[%clk 0:02:58]}  Nxd5 {[%clk 0:02:55]} 6. Bb5 {[%clk 0:02:58]}  Nxc3 {[%clk 0:02:52]} 7. bxc3 {[%clk 0:02:58]}  Bd6 {[%clk 0:02:51]} 8. d4 {[%clk 0:02:58]}  e4 {[%clk 0:02:51]} 9. Nd2 {[%clk 0:02:58]}  Qg5 {[%clk 0:02:49]} 10. Bf1 {[%clk 0:02:58]}  Qg6 {[%clk 0:02:49]} 11. g3 {[%clk 0:02:57]}  Bf5 {[%clk 0:02:47]} 12. Bg2 {[%clk 0:02:53]}  h5 {[%clk 0:02:47]} 13. h3 {[%clk 0:02:49]}  O-O-O {[%clk 0:02:45]} 14. Rb1 {[%clk 0:02:44]}  b6 {[%clk 0:02:19]} 15. g4 {[%clk 0:01:44]}  hxg4 {[%clk 0:02:17]} 16. hxg4 {[%clk 0:01:45]}  Bxg4 {[%clk 0:02:07]} 17. Qa4 {[%clk 0:01:29]}  Bd7 {[%clk 0:01:52]} 18. Rxh8 {[%clk 0:01:26]}  Rxh8 {[%clk 0:01:53]} 19. Bxe4 {[%clk 0:01:25]}  Qg1+ {[%clk 0:01:49]} 20. Nf1 {[%clk 0:01:21]}  Na5 {[%clk 0:01:47]} 21. Qc2 {[%clk 0:01:05]}  g6 {[%clk 0:01:31]} 22. c4 {[%clk 0:00:55]}  f5 {[%clk 0:01:31]} 23. Bd3 {[%clk 0:00:47]}  c5 {[%clk 0:01:27]} 24. Ba3 {[%clk 0:00:44]}  Nb7 {[%clk 0:01:27]} 25. Rd1 {[%clk 0:00:29]}  Re8 {[%clk 0:01:23]} 26. Be2 {[%clk 0:00:27]}  Bc6 {[%clk 0:01:09]} 27. dxc5 {[%clk 0:00:24]}  Bxc5 {[%clk 0:01:09]} 28. Bxc5 {[%clk 0:00:21]}  Nxc5 {[%clk 0:01:10]} 29. Rd6 {[%clk 0:00:20]}  Ba4 {[%clk 0:01:03]} 30. Qd2 {[%clk 0:00:19]}  Ne4 {[%clk 0:01:01]} 0-1


[Site "https://www.chess.com"]

[Event "Titled Tuesday Blitz July 13 2021"]
[White "Alavkin, Arseny"]
[Black "Xie, Bryan"]
[WhiteFideId "4120612"]
[BlackFideId "30941296"]
[WhiteElo "2401"]
[BlackElo "1899"]
[Result "1-0"]
[Round "05"]
[TimeControl "180+1"]
[Date "2021.07.13"]
[WhiteClock "0:00:27"]
[BlackClock "0:00:04"]

1. e4 {[%clk 0:02:53]}  c5 {[%clk 0:02:56]} 2. Nc3 {[%clk 0:02:52]}  Nc6 {[%clk 0:02:50]} 3. Nge2 {[%clk 0:02:52]}  g6 {[%clk 0:02:42]} 4. d4 {[%clk 0:02:51]}  cxd4 {[%clk 0:02:42]} 5. Nxd4 {[%clk 0:02:52]}  Bg7 {[%clk 0:02:43]} 6. Be3 {[%clk 0:02:52]}  Nf6 {[%clk 0:02:42]} 7. Nb3 {[%clk 0:02:53]}  O-O {[%clk 0:02:40]} 8. Be2 {[%clk 0:02:53]}  d6 {[%clk 0:02:37]} 9. O-O {[%clk 0:02:53]}  Be6 {[%clk 0:02:37]} 10. f3 {[%clk 0:02:47]}  Qc8 {[%clk 0:02:32]} 11. Qd2 {[%clk 0:02:45]}  Rd8 {[%clk 0:02:32]} 12. Nd5 {[%clk 0:02:44]}  Bxd5 {[%clk 0:02:29]} 13. exd5 {[%clk 0:02:45]}  Ne5 {[%clk 0:02:29]} 14. Rfd1 {[%clk 0:02:37]}  Nc4 {[%clk 0:02:29]} 15. Bxc4 {[%clk 0:02:36]}  Qxc4 {[%clk 0:02:30]} 16. Qd3 {[%clk 0:02:37]}  Rac8 {[%clk 0:02:29]} 17. c3 {[%clk 0:02:36]}  Nd7 {[%clk 0:02:06]} 18. Qxc4 {[%clk 0:02:33]}  Rxc4 {[%clk 0:02:06]} 19. Nd2 {[%clk 0:02:17]}  Rc7 {[%clk 0:01:58]} 20. Ne4 {[%clk 0:02:17]}  Nc5 {[%clk 0:01:48]} 21. Bxc5 {[%clk 0:02:13]}  dxc5 {[%clk 0:01:48]} 22. Rd2 {[%clk 0:02:12]}  b6 {[%clk 0:01:44]} 23. Rad1 {[%clk 0:02:10]}  Rcd7 {[%clk 0:01:43]} 24. Kf2 {[%clk 0:02:07]}  Be5 {[%clk 0:01:42]} 25. g3 {[%clk 0:02:06]}  f5 {[%clk 0:01:38]} 26. Ng5 {[%clk 0:02:06]}  Bf6 {[%clk 0:01:27]} 27. Ne6 {[%clk 0:02:05]}  Rc8 {[%clk 0:01:28]} 28. h4 {[%clk 0:01:57]}  Kf7 {[%clk 0:01:27]} 29. Nf4 {[%clk 0:01:49]}  Rd6 {[%clk 0:01:23]} 30. Ne6 {[%clk 0:01:37]}  c4 {[%clk 0:01:19]} 31. f4 {[%clk 0:01:36]}  b5 {[%clk 0:01:18]} 32. Kf3 {[%clk 0:01:35]}  a5 {[%clk 0:01:02]} 33. a3 {[%clk 0:01:34]}  Rb6 {[%clk 0:00:54]} 34. g4 {[%clk 0:01:12]}  b4 {[%clk 0:00:49]} 35. axb4 {[%clk 0:01:11]}  axb4 {[%clk 0:00:49]} 36. Rc2 {[%clk 0:01:03]}  bxc3 {[%clk 0:00:49]} 37. bxc3 {[%clk 0:01:04]}  Rb3 {[%clk 0:00:49]} 38. Rdc1 {[%clk 0:01:03]}  fxg4+ {[%clk 0:00:42]} 39. Kxg4 {[%clk 0:01:04]}  h5+ {[%clk 0:00:42]} 40. Kg3 {[%clk 0:01:00]}  Ke8 {[%clk 0:00:28]} 41. f5 {[%clk 0:00:57]}  gxf5 {[%clk 0:00:26]} 42. Kf4 {[%clk 0:00:58]}  Kd7 {[%clk 0:00:25]} 43. Kxf5 {[%clk 0:00:56]}  Kd6 {[%clk 0:00:25]} 44. Nf4 {[%clk 0:00:48]}  Bxh4 {[%clk 0:00:21]} 45. Nxh5 {[%clk 0:00:48]}  Bf2 {[%clk 0:00:19]} 46. Ke4 {[%clk 0:00:45]}  Bb6 {[%clk 0:00:16]} 47. Ng3 {[%clk 0:00:44]}  Ba5 {[%clk 0:00:15]} 48. Nf5+ {[%clk 0:00:44]}  Kd7 {[%clk 0:00:15]} 49. Nd4 {[%clk 0:00:44]}  Rh8 {[%clk 0:00:13]} 50. Nxb3 {[%clk 0:00:43]}  cxb3 {[%clk 0:00:13]} 51. Rb2 {[%clk 0:00:43]}  Rh4+ {[%clk 0:00:13]} 52. Kd3 {[%clk 0:00:43]}  Rh3+ {[%clk 0:00:13]} 53. Kc4 {[%clk 0:00:43]}  Kd6 {[%clk 0:00:08]} 54. Rxb3 {[%clk 0:00:42]}  Rh4+ {[%clk 0:00:09]} 55. Kd3 {[%clk 0:00:43]}  Rh3+ {[%clk 0:00:09]} 56. Kc2 {[%clk 0:00:43]}  Rh2+ {[%clk 0:00:10]} 57. Kb1 {[%clk 0:00:43]}  Bc7 {[%clk 0:00:09]} 58. c4 {[%clk 0:00:43]}  Bd8 {[%clk 0:00:07]} 59. Rd3 {[%clk 0:00:43]}  Kc5 {[%clk 0:00:07]} 60. Rc2 {[%clk 0:00:40]}  Rh1+ {[%clk 0:00:06]} 61. Kb2 {[%clk 0:00:40]}  Bc7 {[%clk 0:00:06]} 62. Re3 {[%clk 0:00:35]}  Bd6 {[%clk 0:00:05]} 63. Kc3 {[%clk 0:00:35]}  Ra1 {[%clk 0:00:04]} 64. Kd3 {[%clk 0:00:35]}  Ra3+ {[%clk 0:00:05]} 65. Ke4 {[%clk 0:00:35]}  Ra4 {[%clk 0:00:05]} 66. Kf5 {[%clk 0:00:34]}  Rxc4 {[%clk 0:00:05]} 67. Rxc4+ {[%clk 0:00:34]}  Kxc4 {[%clk 0:00:05]} 68. Ke6 {[%clk 0:00:35]}  Kc5 {[%clk 0:00:06]} 69. Rh3 {[%clk 0:00:36]}  Kd4 {[%clk 0:00:06]} 70. Rh8 {[%clk 0:00:36]}  Kc5 {[%clk 0:00:07]} 71. Rc8+ {[%clk 0:00:36]}  Kd4 {[%clk 0:00:07]} 72. Rc6 {[%clk 0:00:36]}  Bb4 {[%clk 0:00:07]} 73. Ra6 {[%clk 0:00:35]}  Bc5 {[%clk 0:00:07]} 74. Ra4+ {[%clk 0:00:34]}  Ke3 {[%clk 0:00:07]} 75. Rc4 {[%clk 0:00:34]}  Bd6 {[%clk 0:00:08]} 76. Rh4 {[%clk 0:00:34]}  Kd3 {[%clk 0:00:07]} 77. Kd7 {[%clk 0:00:33]}  Ke3 {[%clk 0:00:07]} 78. Kc6 {[%clk 0:00:33]}  Be5 {[%clk 0:00:06]} 79. Rh6 {[%clk 0:00:26]}  Kd4 {[%clk 0:00:04]} 80. Rh4+ {[%clk 0:00:25]}  Ke3 {[%clk 0:00:04]} 81. Kc5 {[%clk 0:00:25]}  Bd6+ {[%clk 0:00:04]} 82. Kc4 {[%clk 0:00:26]}  Kf3 {[%clk 0:00:04]} 83. Kd4 {[%clk 0:00:25]}  Kg3 {[%clk 0:00:04]} 84. Rh6 {[%clk 0:00:25]}  Bb4 {[%clk 0:00:03]} 85. Ke4 {[%clk 0:00:23]}  Bd6 {[%clk 0:00:03]} 86. Rg6+ {[%clk 0:00:23]}  Kh4 {[%clk 0:00:02]} 87. Kf5 {[%clk 0:00:23]}  Kh3 {[%clk 0:00:03]} 88. Ke6 {[%clk 0:00:23]}  Bb4 {[%clk 0:00:03]} 89. Rg7 {[%clk 0:00:23]}  Kh4 {[%clk 0:00:02]} 90. Rxe7 {[%clk 0:00:24]}  Bxe7 {[%clk 0:00:03]} 91. Kxe7 {[%clk 0:00:25]}  Kg5 {[%clk 0:00:03]} 92. d6 {[%clk 0:00:26]}  Kf5 {[%clk 0:00:04]} 93. d7 {[%clk 0:00:26]}  Ke5 {[%clk 0:00:04]} 94. d8=Q {[%clk 0:00:27]} 1-0


[Site "https://www.chess.com"]

[Event "Titled Tuesday Blitz July 13 2021"]
[White "Amburgy, Ryan"]
[Black "Ibrahimli, Murad"]
[WhiteFideId "30924820"]
[BlackFideId "13410229"]
[WhiteElo "2066"]
[BlackElo "2109"]
[Result "0-1"]
[Round "05"]
[TimeControl "180+1"]
[Date "2021.07.13"]
[WhiteClock "0:00:21"]
[BlackClock "0:00:46"]

1. d4 {[%clk 0:03:00]}  d5 {[%clk 0:02:59]} 2. Nc3 {[%clk 0:03:01]}  c6 {[%clk 0:02:58]} 3. Bf4 {[%clk 0:03:00]}  Bf5 {[%clk 0:02:57]} 4. e3 {[%clk 0:03:00]}  Nd7 {[%clk 0:02:57]} 5. f3 {[%clk 0:02:59]}  e6 {[%clk 0:02:55]} 6. g4 {[%clk 0:02:59]}  Bg6 {[%clk 0:02:55]} 7. Qd2 {[%clk 0:02:42]}  Ngf6 {[%clk 0:02:47]} 8. h4 {[%clk 0:02:41]}  h5 {[%clk 0:02:46]} 9. g5 {[%clk 0:02:40]}  Ng8 {[%clk 0:02:46]} 10. Nge2 {[%clk 0:02:36]}  a6 {[%clk 0:02:42]} 11. Bg3 {[%clk 0:02:28]}  Ne7 {[%clk 0:02:42]} 12. Nf4 {[%clk 0:02:27]}  Nf5 {[%clk 0:02:42]} 13. Bf2 {[%clk 0:02:26]}  Bd6 {[%clk 0:02:40]} 14. e4 {[%clk 0:02:20]}  Bxf4 {[%clk 0:02:34]} 15. Qxf4 {[%clk 0:02:19]}  Ne7 {[%clk 0:02:35]} 16. Bh3 {[%clk 0:02:07]}  b5 {[%clk 0:02:28]} 17. O-O {[%clk 0:02:05]}  Qb8 {[%clk 0:02:26]} 18. Qxb8+ {[%clk 0:01:53]}  Rxb8 {[%clk 0:02:27]} 19. Rfe1 {[%clk 0:01:51]}  Nb6 {[%clk 0:02:25]} 20. b3 {[%clk 0:01:41]}  O-O {[%clk 0:02:24]} 21. Rad1 {[%clk 0:01:40]}  Rfd8 {[%clk 0:02:23]} 22. Bg2 {[%clk 0:01:40]}  b4 {[%clk 0:02:20]} 23. Ne2 {[%clk 0:01:40]}  a5 {[%clk 0:02:21]} 24. Nf4 {[%clk 0:01:38]}  Nbc8 {[%clk 0:02:11]} 25. Rc1 {[%clk 0:01:30]}  Nd6 {[%clk 0:02:10]} 26. c3 {[%clk 0:01:26]}  bxc3 {[%clk 0:02:09]} 27. Rxc3 {[%clk 0:01:27]}  Nb5 {[%clk 0:02:09]} 28. Rd3 {[%clk 0:01:13]}  Nd6 {[%clk 0:01:54]} 29. Rc3 {[%clk 0:01:09]}  Rb6 {[%clk 0:01:44]} 30. Rec1 {[%clk 0:00:55]}  Bh7 {[%clk 0:01:08]} 31. exd5 {[%clk 0:00:44]}  Nxd5 {[%clk 0:01:02]} 32. Nxd5 {[%clk 0:00:44]}  cxd5 {[%clk 0:01:02]} 33. Bh3 {[%clk 0:00:40]}  Bf5 {[%clk 0:01:01]} 34. Bxf5 {[%clk 0:00:38]}  Nxf5 {[%clk 0:01:02]} 35. Rc8 {[%clk 0:00:38]}  Rxc8 {[%clk 0:01:02]} 36. Rxc8+ {[%clk 0:00:38]}  Kh7 {[%clk 0:01:03]} 37. Rc7 {[%clk 0:00:38]}  Kg6 {[%clk 0:01:04]} 38. Kg2 {[%clk 0:00:38]}  a4 {[%clk 0:01:00]} 39. Rc3 {[%clk 0:00:38]}  axb3 {[%clk 0:01:00]} 40. Rxb3 {[%clk 0:00:37]}  Rc6 {[%clk 0:00:58]} 41. a4 {[%clk 0:00:30]}  Rc2 {[%clk 0:00:57]} 42. Kg1 {[%clk 0:00:30]}  Ra2 {[%clk 0:00:56]} 43. Rb4 {[%clk 0:00:30]}  f6 {[%clk 0:00:56]} 44. gxf6 {[%clk 0:00:27]}  gxf6 {[%clk 0:00:56]} 45. Rb6 {[%clk 0:00:26]}  Ng7 {[%clk 0:00:50]} 46. Ra6 {[%clk 0:00:25]}  Kf5 {[%clk 0:00:51]} 47. Be3 {[%clk 0:00:25]}  e5 {[%clk 0:00:46]} 48. Ra8 {[%clk 0:00:20]}  Ne6 {[%clk 0:00:45]} 49. dxe5 {[%clk 0:00:21]}  fxe5 {[%clk 0:00:46]} 50. Rf8+ {[%clk 0:00:21]}  Nxf8 {[%clk 0:00:46]} 0-1


[Site "https://www.chess.com"]